bitfinex-derivatives/quotes_BTCF0:USTF0_20251120
["timestamp","ask_amount","ask_price","bid_price","bid_amount"]
[1763598989689,0.5145816,92336.0,92320.0,0.19420391]
[1763598989690,0.1537992,92321.0,92320.0,0.19420391]
[1763598989886,0.5145992,92321.0,92320.0,0.00219803]
[1763598991185,0.5145992,92321.0,92320.0,0.00319803]
[1763598991684,0.5145992,92321.0,92320.0,0.001]
[1763598993491,0.1538398,92312.0,92311.0,0.20905639]
[1763598993689,0.1538398,92312.0,92311.0,0.01705051]
[1763598994484,0.0454,92312.0,92311.0,0.03174051]
[1763598994892,0.1538398,92312.0,92311.0,0.03174051]
[1763598995092,0.1538398,92312.0,92311.0,0.00236051]
[1763598995498,0.0454,92312.0,92311.0,0.00236051]
[1763598995792,0.0454,92312.0,92311.0,0.03174051]
[1763598996694,0.1669327,92301.0,92300.0,0.19420391]
[1763598996892,0.1669327,92301.0,92290.0,0.19420391]
[1763598996893,0.0453,92291.0,92290.0,0.19420391]
[1763598997101,0.1537633,92292.0,92291.0,0.00073267]
[1763598997393,0.04749803,92292.0,92291.0,0.00073267]
[1763598997594,0.0453,92281.0,92280.0,0.3608]
[1763598997801,0.0453,92281.0,92280.0,0.47001007]
[1763598997802,0.04749803,92281.0,92280.0,0.47001007]
[1763598997992,0.41928,92301.0,92300.0,0.1084539]
[1763598998192,0.42147803,92301.0,92300.0,0.12623657]
[1763598998492,0.42147803,92301.0,92300.0,0.14328657]
[1763598998888,0.06067803,92301.0,92300.0,0.50408657]
[1763598999085,0.04546248,92310.0,92309.0,0.1425433]
[1763598999289,0.04766051,92310.0,92309.0,0.14327597]
[1763598999593,0.04766051,92310.0,92309.0,0.00073267]
[1763598999594,0.15610261,92310.0,92309.0,0.00073267]
[1763599000692,0.04766051,92310.0,92309.0,0.00073267]
[1763599001585,0.15610261,92310.0,92309.0,0.00073267]
[1763599001788,0.15610261,92310.0,92291.0,0.10516248]
[1763599001789,0.0453,92292.0,92291.0,0.10516248]
[1763599001986,0.04749803,92292.0,92291.0,0.10589515]
[1763599002194,0.15596133,92292.0,92291.0,0.00089515]
[1763599002598,0.06067803,92292.0,92291.0,0.00089515]
[1763599003188,0.06067803,92292.0,92291.0,0.03499515]
[1763599003395,0.06067803,92292.0,92291.0,0.01894515]
[1763599003593,0.06067803,92292.0,92291.0,0.01994515]
[1763599003794,0.05848,92301.0,92300.0,0.1084539]
[1763599003988,0.06067803,92301.0,92300.0,0.10918657]
[1763599004595,0.06067803,92301.0,92300.0,0.14328657]
[1763599004795,0.06067803,92301.0,92300.0,0.03483267]
[1763599004995,0.06067803,92301.0,92300.0,0.03583267]
[1763599005201,0.06067803,92301.0,92300.0,0.00173267]
[1763599006697,0.1537633,92292.0,92291.0,0.00016248]
[1763599006904,0.15596133,92292.0,92291.0,0.00089515]
[1763599007597,0.10847,92287.0,92282.0,0.66347821]
[1763599007805,0.00219803,92292.0,92282.0,0.66347821]
[1763599007806,0.15597193,92283.0,92282.0,0.36153267]
[1763599009505,0.15597193,92283.0,92282.0,0.36253267]
[1763599009705,0.3608,92292.0,92291.0,0.1539645]
[1763599009907,0.37398,92301.0,92291.0,0.1539645]
[1763599009908,0.41928,92301.0,92300.0,0.1539539]
[1763599010109,0.42147803,92301.0,92300.0,0.15468657]
[1763599010407,0.42147803,92301.0,92300.0,0.04623267]
[1763599010903,0.42147803,92301.0,92300.0,0.15468657]
[1763599011100,0.36299803,92301.0,92300.0,0.15468657]
[1763599011910,0.36299803,92301.0,92300.0,0.04623267]
[1763599012099,0.38603803,92301.0,92300.0,0.15468657]
[1763599012297,0.38603803,92301.0,92300.0,0.04623267]
[1763599012496,0.40829803,92301.0,92300.0,0.00173267]
[1763599012904,0.40829803,92301.0,92300.0,0.00073267]
[1763599013100,0.40829803,92301.0,92300.0,0.00173267]
[1763599013505,0.40829803,92301.0,92300.0,0.001]
[1763599014308,0.40829803,92301.0,92300.0,0.11018657]
[1763599014808,0.40829803,92301.0,92300.0,0.00173267]
[1763599015825,0.04749803,92301.0,92300.0,0.00173267]
[1763599016607,0.00016248,92310.0,92300.0,0.00173267]
[1763599016608,0.03864779,92321.0,92300.0,0.15568657]
[1763599016811,0.3608,92327.0,92300.0,0.15568657]
[1763599016812,0.05848,92316.0,92315.0,0.1084363]
[1763599017015,0.05848,92316.0,92315.0,0.13317433]
[1763599017716,0.03864779,92325.0,92318.0,0.1539327]
[1763599018019,0.1084243,92326.0,92318.0,0.15613073]
[1763599018215,0.3608,92327.0,92318.0,0.15613073]
[1763599018809,0.0453,92327.0,92326.0,0.1084233]
[1763599019012,0.0453,92327.0,92326.0,0.00219803]
[1763599020012,0.0463,92327.0,92326.0,0.00219803]
[1763599021018,0.0463,92327.0,92326.0,0.04769803]
[1763599021216,0.001,92327.0,92326.0,0.04769803]
[1763599021922,0.04667,92327.0,92326.0,0.02473803]
[1763599022125,0.1550922,92327.0,92326.0,0.00219803]
[1763599024614,0.1550922,92327.0,92317.0,0.34871861]
[1763599024615,0.1525027,92318.0,92317.0,0.34871861]
[1763599024812,0.1525027,92318.0,92317.0,0.10723803]
[1763599025416,0.04407,92310.0,92309.0,0.00016248]
[1763599025615,0.1525121,92310.0,92309.0,0.00236051]
[1763599028419,0.1525121,92310.0,92309.0,0.00016248]
[1763599028624,0.1525274,92297.0,92290.0,0.24367861]
[1763599028926,0.1525274,92297.0,92296.0,0.36299803]
[1763599029318,0.01331,92304.0,92290.0,0.34867861]
[1763599029319,0.1525345,92291.0,92290.0,0.24367861]
[1763599029523,0.04407,92291.0,92290.0,0.10719803]
[1763599029827,0.04407,92291.0,92290.0,0.21566363]
[1763599030012,0.04407,92291.0,92290.0,0.11066363]
[1763599030828,0.04407,92291.0,92290.0,0.00219803]
[1763599031431,0.01331,92292.0,92281.0,0.00016248]
[1763599031432,0.04407,92282.0,92281.0,0.00016248]
[1763599032423,0.04407,92282.0,92281.0,0.00336051]
[1763599032829,0.04407,92282.0,92281.0,0.04897051]
[1763599033429,0.05738,92292.0,92291.0,0.1084645]
[1763599033628,0.05738,92292.0,92291.0,0.15627253]
[1763599033830,0.04407,92292.0,92291.0,0.15627253]
[1763599036323,0.04407,92292.0,92291.0,0.13385253]
[1763599037018,0.04407,92292.0,92291.0,0.15627253]
[1763599037417,0.02022518,92292.0,92291.0,0.02392267]
[1763599037634,0.04166518,92292.0,92291.0,0.02392267]
[1763599038033,0.04166518,92292.0,92291.0,0.13238717]
[1763599038428,0.04166518,92292.0,92291.0,0.15480717]
[1763599040132,0.00219803,92292.0,92291.0,0.15480717]
[1763599041531,0.00219803,92292.0,92291.0,0.15580717]
[1763599043027,0.37411,92304.0,92299.0,0.1540651]
[1763599043227,0.37411,92304.0,92299.0,0.25975777]
[1763599043228,0.00236051,92300.0,92299.0,0.25975777]
[1763599044328,8e-08,92300.0,92299.0,0.25975777]
[1763599046240,0.02500008,92300.0,92299.0,0.25975777]
[1763599046534,8e-08,92300.0,92299.0,0.25975777]
[1763599046925,0.3608,92321.0,92320.0,0.1529204]
[1763599047131,0.3608,92321.0,92320.0,0.25861307]
[1763599047335,0.05737,92331.0,92330.0,0.1529087]
[1763599047631,0.05956803,92331.0,92330.0,0.15364137]
[1763599047826,0.00219803,92331.0,92330.0,0.15364137]
[1763599048228,0.05753248,92340.0,92339.0,0.1528981]
[1763599048536,0.05973051,92340.0,92339.0,0.15363077]
[1763599048739,0.04578051,92340.0,92339.0,0.15363077]
[1763599049124,0.00236051,92340.0,92339.0,0.15363077]
[1763599049326,0.04578051,92340.0,92339.0,0.15363077]
[1763599049535,0.05973051,92340.0,92339.0,0.04522267]
[1763599050634,0.06073051,92340.0,92339.0,0.04522267]
[1763599052137,0.04678051,92340.0,92339.0,0.04522267]
[1763599052334,0.00336051,92340.0,92339.0,0.04522267]
[1763599052940,0.00116248,92340.0,92339.0,0.04522267]
[1763599053440,0.41891,92358.0,92357.0,0.153457]
[1763599053633,0.42110803,92358.0,92357.0,0.25910967]
[1763599054142,0.39949803,92358.0,92357.0,0.25910967]
[1763599054742,0.42110803,92358.0,92357.0,0.10492]
[1763599054940,0.42110803,92358.0,92348.0,0.24367861]
[1763599054941,0.04416,92349.0,92348.0,0.24367861]
[1763599055128,0.04416,92349.0,92348.0,0.10565267]
[1763599055129,0.04635803,92349.0,92348.0,0.10565267]
[1763599055533,0.04635803,92349.0,92348.0,0.00073267]
[1763599056344,0.04416,92331.0,92330.0,0.24384109]
[1763599056641,0.04416,92331.0,92330.0,0.00089515]
[1763599056642,0.40715803,92331.0,92330.0,0.00089515]
[1763599056839,0.40715803,92331.0,92330.0,0.00016248]
[1763599057636,0.40715803,92331.0,92330.0,0.00116248]
[1763599057942,0.40715803,92331.0,92304.0,0.3608]
[1763599057943,0.04416,92313.0,92312.0,0.1084391]
[1763599058243,0.04635803,92313.0,92312.0,0.25916177]
[1763599059445,0.04635803,92313.0,92312.0,0.15424177]
[1763599059638,0.04635803,92313.0,92312.0,0.23695177]
[1763599059839,0.04635803,92313.0,92312.0,0.25916177]
[1763599060135,0.02474803,92313.0,92312.0,0.25916177]
[1763599060445,0.00219803,92313.0,92312.0,0.25916177]
[1763599061243,0.00016248,92322.0,92321.0,0.04507]
[1763599061548,0.00236051,92322.0,92321.0,0.15068267]
[1763599062439,0.00016248,92322.0,92321.0,0.15068267]
[1763599062959,0.3608,92348.0,92339.0,0.1534781]
[1763599063153,0.40496,92348.0,92347.0,0.1312587]
[1763599063360,0.40715803,92348.0,92347.0,0.15420137]
[1763599064750,0.51555563,92348.0,92347.0,0.00073267]
[1763599064949,0.1525681,92339.0,92338.0,0.00016248]
[1763599065145,0.51556613,92339.0,92338.0,0.12867515]
[1763599065453,0.40715803,92339.0,92338.0,0.15088515]
[1763599067143,0.40715803,92339.0,92338.0,0.15188515]
[1763599067344,0.40715803,92339.0,92338.0,0.00189515]
[1763599067543,0.40715803,92339.0,92338.0,0.10677515]
[1763599068142,0.40715803,92339.0,92321.0,0.3608]
[1763599068143,0.04416,92322.0,92321.0,0.3608]
[1763599068350,0.04416,92313.0,92312.0,0.5143098]
[1763599068550,0.04635803,92313.0,92312.0,0.61996247]
[1763599068748,0.04635803,92313.0,92312.0,0.51504247]
[1763599069353,0.04635803,92313.0,92312.0,0.15424247]
[1763599070045,0.04635803,92313.0,92312.0,0.15724247]
[1763599070244,0.40715803,92313.0,92312.0,0.00373267]
[1763599070441,0.40715803,92313.0,92312.0,0.10865267]
[1763599071352,0.40715803,92313.0,92312.0,0.10792]
[1763599071559,0.04416,92304.0,92303.0,0.00016248]
[1763599071756,0.04635803,92304.0,92303.0,0.10508248]
[1763599072056,0.15480723,92304.0,92303.0,0.10581515]
[1763599072259,0.04635803,92304.0,92303.0,0.10581515]
[1763599072657,0.04635803,92304.0,92303.0,0.00089515]
[1763599073360,0.04635803,92304.0,92303.0,0.00189515]
[1763599075263,0.04635803,92304.0,92303.0,0.00089515]
[1763599076150,0.04635803,92304.0,92303.0,0.10934555]
[1763599076345,0.04635803,92304.0,92303.0,0.00089515]
[1763599076550,0.04635803,92304.0,92303.0,0.02375515]
[1763599076754,0.04635803,92304.0,92303.0,0.00089515]
[1763599080157,0.04635803,92304.0,92303.0,0.02375515]
[1763599080364,0.04635803,92304.0,92303.0,0.04596515]
[1763599080755,0.04635803,92304.0,92303.0,0.00089515]
[1763599081058,0.04635803,92304.0,92303.0,0.00016248]
[1763599081253,0.04635803,92304.0,92294.0,0.19391448]
[1763599081254,0.04416,92295.0,92294.0,0.29879448]
[1763599081450,0.06013803,92295.0,92294.0,0.10561267]
[1763599081851,0.16859783,92295.0,92294.0,0.00073267]
[1763599082051,0.06013803,92295.0,92294.0,0.04638267]
[1763599082255,0.00219803,92295.0,92294.0,0.15130267]
[1763599082864,0.00219803,92295.0,92294.0,0.15230267]
[1763599086966,0.40512,92305.0,92304.0,0.1525492]
[1763599087169,0.36299803,92305.0,92304.0,0.15328187]
[1763599087370,0.00219803,92305.0,92304.0,0.25816187]
[1763599087573,0.00219803,92305.0,92304.0,0.26468187]
[1763599087871,0.4189,92320.0,92319.0,0.1525316]
[1763599088164,0.4189,92320.0,92319.0,0.15472963]
[1763599088371,0.0581,92320.0,92319.0,0.15472963]
[1763599089068,0.04532,92320.0,92319.0,0.15472963]
[1763599089268,0.00016248,92322.0,92321.0,0.0441]
[1763599089469,0.00016248,92322.0,92321.0,0.04629803]
[1763599090161,0.04448248,92322.0,92321.0,0.04629803]
[1763599090562,0.05797248,92322.0,92321.0,0.04629803]
[1763599091456,0.05997248,92322.0,92321.0,0.04629803]
[1763599092671,0.05997248,92322.0,92321.0,0.00219803]
[1763599092868,0.05997248,92322.0,92321.0,0.10707803]
[1763599094265,0.05997248,92322.0,92321.0,0.15117803]
[1763599094470,0.05997248,92322.0,92321.0,0.10707803]
[1763599094968,0.04648248,92322.0,92321.0,0.04629803]
[1763599095568,0.05997248,92322.0,92321.0,0.04629803]
[1763599096576,0.00216248,92322.0,92321.0,0.04629803]
[1763599100173,0.00216248,92322.0,92321.0,0.0748503]
[1763599100471,0.05997248,92322.0,92321.0,0.07484916]
[1763599100671,0.05997248,92322.0,92321.0,0.10703803]
[1763599102066,0.05997248,92322.0,92321.0,0.00219803]
[1763599102267,0.08497248,92322.0,92321.0,0.00219803]
[1763599106474,0.04516,92315.0,92314.0,1.13e-06]
[1763599106679,0.0456,92311.0,92310.0,0.00016248]
[1763599106880,0.04779803,92311.0,92310.0,0.00016248]
[1763599107073,0.04779803,92311.0,92310.0,0.00089515]
[1763599110779,0.0456,92301.0,92300.0,0.19391448]
[1763599110983,0.0456,92295.0,92294.0,0.0381114]
[1763599111284,0.00544,92292.0,92291.0,0.0381114]
[1763599111479,0.00544,92292.0,92286.0,0.0002709]
[1763599111480,0.01088,92287.0,92286.0,0.0002709]
[1763599111688,0.37387803,92287.0,92286.0,0.0002709]
[1763599111882,0.37387803,92287.0,92286.0,0.0135409]
[1763599112871,0.37387803,92287.0,92286.0,0.0002709]
[1763599113692,0.37387803,92287.0,92286.0,0.0012709]
[1763599114177,0.01088,92281.0,92280.0,0.19391448]
[1763599114378,0.01088,92281.0,92277.0,0.00016248]
[1763599114379,0.01088,92278.0,92277.0,0.00016248]
[1763599114582,0.01088,92265.0,92264.0,0.10857933]
[1763599114776,0.01307803,92265.0,92264.0,0.130602]
[1763599115181,0.01307803,92265.0,92264.0,0.152652]
[1763599115787,0.01307803,92265.0,92264.0,8.303e-05]
[1763599116188,0.01307803,92265.0,92264.0,0.0008157]
[1763599117579,0.37387803,92265.0,92264.0,3.03e-06]
[1763599117789,0.01072,92256.0,92255.0,0.00016258]
[1763599117987,0.01291803,92256.0,92255.0,0.00016258]
[1763599118994,0.01302702,92256.0,92255.0,0.00016258]
[1763599119791,0.01302702,92256.0,92255.0,0.00116258]
[1763599120001,0.01302702,92256.0,92255.0,0.04523525]
[1763599120193,0.00230702,92256.0,92255.0,0.04423525]
[1763599120499,0.01302702,92256.0,92255.0,0.00089525]
[1763599120885,0.01302702,92256.0,92255.0,0.00016258]
[1763599121385,0.01302702,92256.0,92255.0,2.58e-06]
[1763599121797,0.0104,92247.0,92246.0,0.00027102]
[1763599121987,0.01259803,92247.0,92246.0,0.00027102]
[1763599124089,0.1189174,92246.0,92245.0,0.63582368]
[1763599124285,0.01270702,92246.0,92245.0,0.63582368]
[1763599125896,0.01270702,92246.0,92245.0,0.67989635]
[1763599126483,0.12122442,92246.0,92245.0,0.67989635]
[1763599126798,0.12122442,92246.0,92245.0,0.65784635]
[1763599126999,0.12122442,92246.0,92245.0,0.63582368]
[1763599127195,0.12122442,92246.0,92245.0,0.59142771]
[1763599127394,0.1085525,92217.0,92207.0,0.3608]
[1763599127694,0.1085633,92207.0,92200.0,0.19391448]
[1763599127999,0.47156133,92207.0,92196.0,0.01294]
[1763599129196,0.1085688,92203.0,92196.0,0.01294]
[1763599129390,0.1085688,92203.0,92196.0,0.05701267]
[1763599129391,0.00219803,92197.0,92196.0,0.05701267]
[1763599129794,0.00219803,92197.0,92196.0,0.03423]
[1763599129991,0.00219803,92197.0,92187.0,0.01294]
[1763599129992,0.1085797,92194.0,92187.0,0.01294]
[1763599130196,0.36299803,92188.0,92187.0,0.05701267]
[1763599130894,0.0020895,92188.0,92187.0,0.05701267]
[1763599131292,0.0020895,92188.0,92187.0,0.0350712]
[1763599131495,0.0020895,92188.0,92187.0,0.0571212]
[1763599131695,0.0020895,92188.0,92187.0,0.01594]
[1763599131892,0.4620895,92188.0,92187.0,0.01594]
[1763599132298,0.1085935,92182.0,92180.0,0.01294]
[1763599132502,0.1085935,92182.0,92170.0,0.01294]
[1763599132503,0.36300115,92181.0,92170.0,0.01294]
[1763599132705,0.3608,92171.0,92170.0,0.05628]
[1763599132902,0.1086069,92170.0,92166.0,0.00027125]
[1763599133199,0.0020895,92167.0,92166.0,0.00027125]
[1763599133405,0.1086185,92161.0,92143.0,0.3608]
[1763599133699,0.36092411,92169.0,92143.0,0.3608]
[1763599133700,0.3628895,92159.0,92158.0,0.0350712]
[1763599134796,0.3628895,92159.0,92158.0,0.0370712]
[1763599135400,0.3628895,92159.0,92158.0,0.01494]
[1763599135795,0.3628895,92159.0,92158.0,0.03623]
[1763599136106,0.3628895,92159.0,92158.0,0.0591212]
[1763599136902,0.3628895,92159.0,92158.0,0.03523]
[1763599137106,0.3628895,92159.0,92158.0,0.01394]
[1763599138001,0.36302467,92159.0,92158.0,0.001]
[1763599138306,0.1086328,92148.0,92137.0,0.10872877]
[1763599138501,0.47165796,92148.0,92139.0,0.1086428]
[1763599138897,0.47165796,92148.0,92137.0,8.337e-05]
[1763599139099,0.1086446,92138.0,92137.0,8.337e-05]
[1763599139306,0.4715341,92138.0,92137.0,8.337e-05]
[1763599140312,0.1086576,92127.0,92126.0,0.00027137]
[1763599140508,0.5766271,92127.0,92126.0,0.00027137]
[1763599140899,0.3628895,92127.0,92126.0,0.04445257]
[1763599141099,0.3628895,92127.0,92126.0,0.00027137]
[1763599141609,0.3629709,92127.0,92126.0,0.001]
[1763599142009,0.1086717,92115.0,92103.0,0.01294]
[1763599142206,0.57674939,92115.0,92103.0,0.01294]
[1763599142899,0.46807769,92115.0,92103.0,0.01294]
[1763599143213,0.1086952,92096.0,92086.0,0.00027149]
[1763599143404,0.3628895,92093.0,92092.0,0.0137812]
[1763599143593,0.1072095,92093.0,92092.0,0.0567612]
[1763599144108,0.0020895,92093.0,92092.0,0.0567612]
[1763599148111,0.0020895,92093.0,92092.0,0.0356512]
[1763599148306,0.0020895,92093.0,92092.0,0.0567612]
[1763599149798,0.0020895,92093.0,92092.0,0.05592]
[1763599149998,0.0020895,92093.0,92092.0,0.01294]
[1763599150511,0.0020895,92093.0,92092.0,0.0567612]
[1763599151808,0.0020895,92093.0,92092.0,0.05592]
[1763599152007,0.0020895,92093.0,92092.0,0.1646189]
[1763599152209,0.0020895,92093.0,92092.0,0.1654601]
[1763599152908,0.0020895,92093.0,92092.0,0.0567612]
[1763599153210,0.0020895,92093.0,92092.0,0.00721614]
[1763599154006,0.0020895,92093.0,92092.0,0.02908614]
[1763599154708,0.0020895,92093.0,92092.0,0.05019614]
[1763599155408,0.0020895,92093.0,92092.0,0.05103734]
[1763599156909,0.10516,92104.0,92092.0,0.05103734]
[1763599156910,0.32556285,92105.0,92104.0,0.04298]
[1763599157096,0.29016285,92105.0,92104.0,0.04517803]
[1763599157411,0.3608,92113.0,92112.0,0.1086753]
[1763599157609,0.3608,92113.0,92112.0,0.15385333]
[1763599157807,0.36088343,92113.0,92112.0,0.04517803]
[1763599158005,0.36088343,92113.0,92112.0,0.04298]
[1763599158211,0.1086847,92104.0,92103.0,0.03549285]
[1763599158513,0.3608,92104.0,92103.0,0.05880088]
[1763599158714,0.36088343,92113.0,92112.0,0.04298]
[1763599158916,0.46604343,92113.0,92112.0,0.04517803]
[1763599159906,0.46604343,92113.0,92112.0,0.02406803]
[1763599160306,0.46604343,92113.0,92112.0,0.04517803]
[1763599160307,0.36088343,92113.0,92112.0,0.04517803]
[1763599161515,0.1086819,92107.0,92106.0,0.02187]
[1763599161715,0.1086819,92107.0,92103.0,0.01362285]
[1763599161716,0.1086847,92104.0,92103.0,0.01362285]
[1763599161908,0.3608,92105.0,92104.0,0.1516647]
[1763599162106,0.4694835,92105.0,92104.0,0.04517803]
[1763599162605,0.36088343,92113.0,92112.0,0.04298]
[1763599162806,0.36088343,92113.0,92112.0,0.04517803]
[1763599163517,0.36088343,92113.0,92112.0,0.15385333]
[1763599164018,0.36088343,92113.0,92112.0,0.04517803]
[1763599164607,8.343e-05,92113.0,92112.0,0.04517803]
[1763599166308,0.36088343,92113.0,92112.0,0.04517803]
[1763599166909,0.36088343,92113.0,92103.0,0.01362285]
[1763599167117,0.3608,92104.0,92103.0,0.01381285]
[1763599167515,0.3608,92104.0,92103.0,0.00016285]
[1763599167820,0.3608,92104.0,92103.0,0.01381285]
[1763599168016,0.3608,92104.0,92103.0,0.05882285]
[1763599168511,0.46596,92104.0,92103.0,0.05882285]
[1763599169508,0.3608,92104.0,92103.0,0.16970678]
[1763599170618,0.36088343,92113.0,92112.0,0.1536853]
[1763599170811,0.36088343,92113.0,92112.0,0.15588333]
[1763599171711,0.36088343,92113.0,92112.0,0.04720803]
[1763599172915,0.1086843,92105.0,92103.0,0.03498285]
[1763599173117,0.4694843,92105.0,92103.0,0.03498285]
[1763599173319,0.3608,92105.0,92104.0,0.04486]
[1763599173622,0.3608,92105.0,92104.0,0.04705803]
[1763599173812,0.3608,92105.0,92104.0,0.15574273]
[1763599174217,0.3608,92105.0,92104.0,0.04705803]
[1763599174515,0.4694835,92105.0,92104.0,0.04705803]
[1763599174720,0.4694835,92105.0,92103.0,0.01381285]
[1763599175015,0.4694835,92105.0,92103.0,0.03498285]
[1763599175816,0.4694835,92105.0,92103.0,0.01381285]
[1763599178629,0.4694835,92105.0,92103.0,0.01256285]
[1763599179534,0.3608,92105.0,92104.0,0.04486]
[1763599179918,0.3608,92105.0,92104.0,0.04705803]
[1763599180329,0.36088343,92113.0,92112.0,0.1524253]
[1763599180528,0.46600343,92113.0,92112.0,0.15462333]
[1763599180728,0.36088343,92113.0,92112.0,0.15462333]
[1763599181726,0.00016285,92122.0,92121.0,0.1525147]
[1763599181933,0.00016285,92122.0,92121.0,0.15471273]
[1763599182115,0.32596285,92124.0,92123.0,0.04385]
[1763599182321,0.3608,92132.0,92131.0,0.1525029]
[1763599182523,0.3608,92132.0,92131.0,0.15470093]
[1763599182916,0.36088325,92132.0,92131.0,0.15470093]
[1763599184026,0.36188325,92132.0,92131.0,0.15470093]
[1763599184232,0.00108325,92132.0,92131.0,0.15470093]
[1763599185230,0.00108325,92132.0,92131.0,0.51550093]
[1763599185929,0.00016285,92141.0,92140.0,0.1524923]
[1763599186138,0.00016285,92141.0,92140.0,0.51549033]
[1763599187020,0.3608,92163.0,92162.0,0.04385]
[1763599187233,5.187e-05,92163.0,92162.0,0.04604803]
[1763599188025,5.187e-05,92163.0,92162.0,0.40684803]
[1763599189327,5.187e-05,92163.0,92162.0,0.41184803]
[1763599190433,0.00016276,92172.0,92171.0,0.1524557]
[1763599190628,0.00016276,92172.0,92171.0,0.51545373]
[1763599191443,0.04402276,92172.0,92171.0,0.00219803]
[1763599191733,0.04402276,92172.0,92171.0,0.00719803]
[1763599192539,0.04402276,92172.0,92171.0,0.01219803]
[1763599193643,0.04402276,92172.0,92158.0,0.01148]
[1763599193644,0.1524857,92154.0,92144.0,0.1086371]
[1763599193944,0.5132857,92154.0,92153.0,0.00236079]
[1763599194442,0.5132857,92154.0,92153.0,0.00016276]
[1763599195631,0.5132857,92154.0,92153.0,0.00516276]
[1763599196031,0.5132857,92154.0,92153.0,0.01016276]
[1763599196736,0.5132857,92154.0,92153.0,0.00516276]
[1763599197040,0.5152857,92154.0,92153.0,0.00516276]
[1763599197628,0.5152857,92154.0,92153.0,0.00016276]
[1763599197842,0.5172857,92154.0,92153.0,0.00016276]
[1763599201245,0.5172857,92154.0,92107.0,0.1086812]
[1763599201246,0.1525211,92124.0,92111.0,0.3608]
[1763599201435,0.04386,92115.0,92114.0,0.04385]
[1763599201636,0.04386,92115.0,92114.0,0.04604803]
[1763599202036,0.04392,92120.0,92119.0,0.0437]
[1763599202235,0.04392,92120.0,92119.0,0.04589803]
[1763599203637,0.1525953,92112.0,92111.0,0.3608]
[1763599203844,0.1525953,92112.0,92111.0,0.36299803]
[1763599204449,0.02134,92112.0,92111.0,0.40669803]
[1763599204744,0.04392,92112.0,92111.0,0.04589803]
[1763599205336,0.04492,92112.0,92111.0,0.04589803]
[1763599205541,0.04492,92112.0,92111.0,0.02437803]
[1763599205946,0.04692,92112.0,92111.0,0.00219803]
[1763599207844,0.04592,92112.0,92111.0,0.00219803]
[1763599208046,0.04692,92112.0,92111.0,0.00219803]
[1763599209740,0.1526024,92106.0,92105.0,0.04386276]
[1763599209952,0.1526024,92106.0,92105.0,0.00016276]
[1763599211339,0.1526024,92106.0,92092.0,0.41757]
[1763599211340,0.1086977,92093.0,92092.0,0.41757]
[1763599211539,0.1086977,92093.0,92092.0,0.41976803]
[1763599211748,0.1086946,92096.0,92095.0,0.0437]
[1763599211951,0.1526146,92096.0,92095.0,0.04589803]
[1763599212653,0.1526177,92093.0,92092.0,0.3608]
[1763599212843,0.1526248,92087.0,92086.0,0.04397149]
[1763599213045,0.1526248,92087.0,92086.0,0.00027149]
[1763599213255,0.1526378,92076.0,92075.0,0.38298]
[1763599213557,0.1526378,92076.0,92075.0,0.40669803]
[1763599213741,0.04392,92076.0,92075.0,0.40669803]
[1763599214844,0.3608,92084.0,92081.0,0.0437]
[1763599214845,0.1526311,92082.0,92081.0,0.0437]
[1763599215048,0.04392,92082.0,92081.0,0.0437]
[1763599215248,0.04392,92082.0,92081.0,0.04589803]
[1763599216049,0.04392,92082.0,92081.0,0.00219803]
[1763599217153,0.1526378,92076.0,92075.0,0.3608]
[1763599217750,0.1526425,92072.0,92070.0,0.00971803]
[1763599218757,0.04392,92072.0,92071.0,0.04600416]
[1763599219055,0.02134,92072.0,92071.0,0.04600416]
[1763599219247,0.3618,92076.0,92075.0,0.0437]
[1763599219448,0.3618,92076.0,92075.0,0.04589803]
[1763599219449,0.02234,92076.0,92075.0,0.04589803]
[1763599219644,0.02234,92076.0,92075.0,0.15461693]
[1763599220258,0.02134,92076.0,92075.0,0.04589803]
[1763599220450,0.02134,92076.0,92075.0,0.15461693]
[1763599220647,0.02134,92083.0,92082.0,0.1524107]
[1763599220855,0.02134,92083.0,92082.0,0.15460873]
[1763599221056,0.04392,92083.0,92082.0,0.04589803]
[1763599221957,0.04492,92083.0,92082.0,0.04589803]
[1763599223058,0.04692,92083.0,92082.0,0.04589803]
[1763599223245,0.1556295,92083.0,92082.0,0.02437803]
[1763599223454,0.1526425,92072.0,92071.0,0.02228613]
[1763599224056,0.1526425,92072.0,92071.0,0.04600416]
[1763599224258,0.04392,92072.0,92071.0,0.04600416]
[1763599224663,0.04492,92072.0,92071.0,0.04600416]
[1763599226153,0.04492,92072.0,92071.0,0.00230416]
[1763599226654,0.04492,92072.0,92071.0,0.00010613]
[1763599226963,0.04492,92072.0,92071.0,0.04698416]
[1763599229356,0.1536425,92072.0,92071.0,0.04698416]
[1763599230047,0.04492,92072.0,92071.0,0.04698416]
[1763599231057,0.02234,92072.0,92071.0,0.04698416]
[1763599231263,0.001,92072.0,92071.0,0.04698416]
[1763599231858,0.001,92072.0,92071.0,0.40778416]
[1763599233161,0.00016285,92085.0,92084.0,0.1527483]
[1763599233460,0.00016285,92085.0,92084.0,0.15494633]
[1763599234362,0.00316285,92085.0,92084.0,0.15494633]
[1763599234858,0.00116285,92085.0,92084.0,0.15494633]
[1763599235059,0.00216285,92085.0,92084.0,0.15494633]
[1763599235659,0.00116285,92085.0,92084.0,0.15494633]
[1763599235865,0.00216285,92085.0,92084.0,0.15494633]
[1763599238164,0.1538166,92111.0,92110.0,0.02117]
[1763599238564,0.1538166,92111.0,92110.0,0.02336803]
[1763599239376,0.1548166,92111.0,92110.0,0.02336803]
[1763599239776,0.1548166,92111.0,92110.0,0.04623803]
[1763599240679,0.1548166,92111.0,92110.0,0.00219803]
[1763599241278,0.1568166,92111.0,92110.0,0.00219803]
[1763599241672,0.1568166,92111.0,92110.0,0.02484803]
[1763599242780,0.04814,92111.0,92110.0,0.02484803]
[1763599243674,0.04814,92111.0,92110.0,0.00219803]
[1763599245780,0.04558,92102.0,92101.0,0.00016285]
[1763599246086,0.15428,92091.0,92082.0,0.3608]
[1763599246279,0.15428,92091.0,92086.0,0.1087052]
[1763599246585,0.15428,92091.0,92090.0,0.36299803]
[1763599247078,0.3608,92102.0,92101.0,0.1086882]
[1763599247079,0.40638,92102.0,92101.0,0.1086882]
[1763599247272,0.5115,92102.0,92101.0,0.13353623]
[1763599247475,0.5115,92102.0,92101.0,0.15674623]
[1763599247674,0.40638,92102.0,92101.0,0.15674623]
[1763599248077,0.40838,92102.0,92101.0,0.15674623]
[1763599248777,0.04758,92102.0,92101.0,0.15674623]
[1763599249892,0.156267,92102.0,92101.0,0.04805803]
[1763599250387,0.002,92102.0,92101.0,0.04805803]
[1763599252081,0.04558,92110.0,92102.0,0.108687]
[1763599252280,0.04558,92110.0,92109.0,0.04805803]
[1763599253985,0.04658,92110.0,92109.0,0.04805803]
[1763599254784,0.04758,92110.0,92109.0,0.04805803]